bitfinex-derivatives/quotes_BTCF0:USTF0_20240817
["timestamp","ask_amount","ask_price","bid_price","bid_amount"]
[1723901155087,0.88585341,59435.0,59434.0,0.3628]
[1723901155484,0.88585341,59435.0,59434.0,0.002]
[1723901155689,0.88585341,59435.0,59434.0,0.3628]
[1723901156693,0.88585341,59435.0,59434.0,0.44636474]
[1723901157281,0.88585341,59435.0,59434.0,0.49096832]
[1723901158997,0.5671,59435.0,59433.0,0.09988918]
[1723901159201,0.063096,59425.0,59424.0,0.3608]
[1723901159496,0.41,59425.0,59424.0,0.51683276]
[1723901159691,0.66566841,59425.0,59424.0,0.51683276]
[1723901160000,0.72876441,59425.0,59424.0,0.51683276]
[1723901160190,0.66566841,59425.0,59424.0,0.51683276]
[1723901160388,0.66566841,59425.0,59424.0,0.63403008]
[1723901160692,0.66566841,59425.0,59424.0,0.76379291]
[1723901161292,0.26566841,59425.0,59424.0,0.76379291]
[1723901161493,0.25566841,59425.0,59424.0,0.76379291]
[1723901162291,0.26566841,59425.0,59424.0,0.76379291]
[1723901162689,0.25566841,59425.0,59424.0,0.76379291]
[1723901163088,0.0473,59431.0,59426.0,0.063094]
[1723901163401,0.2873,59431.0,59430.0,0.3608]
[1723901163601,0.2873,59431.0,59430.0,0.51683276]
[1723901163795,0.54296841,59431.0,59430.0,0.8176213]
[1723901163990,0.54296841,59431.0,59430.0,0.70068164]
[1723901164187,0.48905548,59431.0,59430.0,0.81762579]
[1723901164605,0.48905548,59431.0,59430.0,0.45682579]
[1723901164806,0.48905548,59431.0,59430.0,0.81762579]
[1723901164995,0.48905548,59431.0,59430.0,0.81862579]
[1723901165704,0.48905548,59431.0,59430.0,0.63477691]
[1723901166002,0.48905548,59431.0,59430.0,0.63577691]
[1723901166204,0.48905548,59431.0,59430.0,0.8196289]
[1723901167093,0.48905548,59431.0,59430.0,0.70268475]
[1723901167400,0.48905548,59431.0,59430.0,0.81969316]
[1723901167609,0.26066841,59431.0,59430.0,0.70268142]
[1723901168101,0.28066841,59431.0,59430.0,0.70268142]
[1723901169697,0.025,59431.0,59430.0,0.70268142]
[1723901169902,0.005,59431.0,59430.0,0.76577142]
[1723901170203,0.005,59431.0,59430.0,1.67057142]
[1723901173291,0.005,59431.0,59430.0,0.93069]
[1723901173491,0.005,59431.0,59430.0,1.67054866]
[1723901174198,0.005,59431.0,59430.0,1.79871781]
[1723901174504,0.005,59431.0,59430.0,1.83574632]
[1723901175202,0.005,59431.0,59430.0,1.93673316]
[1723901175395,0.005,59431.0,59430.0,1.87277483]
[1723901175593,0.005,59431.0,59430.0,1.68892759]
[1723901178912,0.005,59431.0,59430.0,1.68892783]
[1723901179709,0.005,59431.0,59430.0,1.68892095]
[1723901180909,0.005,59431.0,59430.0,1.32812095]
[1723901181406,0.005,59431.0,59430.0,2.04972095]
[1723901181604,0.005,59431.0,59430.0,1.9215514]
[1723901181908,0.005,59431.0,59430.0,1.85864726]
[1723901182912,0.1932581,59446.0,59430.0,1.35384726]
[1723901183101,0.1932581,59446.0,59444.0,0.156175]
[1723901183102,0.25647095,59445.0,59444.0,0.156175]
[1723901183404,0.25647095,59445.0,59444.0,0.19319852]
[1723901183615,0.26647095,59445.0,59444.0,0.19319852]
[1723901184108,0.26647095,59445.0,59444.0,0.063075]
[1723901184511,0.26647095,59445.0,59444.0,0.064075]
[1723901184707,0.26647095,59445.0,59444.0,0.10109707]
[1723901185100,0.26647095,59445.0,59444.0,0.001]
[1723901186211,0.26647095,59445.0,59444.0,0.12914764]
[1723901186812,0.26647095,59445.0,59444.0,0.13014764]
[1723901187312,0.25647095,59445.0,59444.0,0.13014764]
[1723901187510,0.25647095,59445.0,59444.0,0.19322264]
[1723901188811,0.0513,59445.0,59444.0,0.19322264]
[1723901189209,0.0513,59445.0,59444.0,0.55402264]
[1723901191304,0.2426581,59446.0,59445.0,0.567754]
[1723901191305,0.17397618,59446.0,59445.0,0.567754]
[1723901191502,0.17397618,59446.0,59445.0,0.94039502]
[1723901191709,0.17397618,59446.0,59445.0,1.37741185]
[1723901192511,0.17397618,59446.0,59445.0,0.97741185]
[1723901192711,0.17397618,59446.0,59445.0,0.97841185]
[1723901193115,0.17397618,59446.0,59445.0,1.37841185]
[1723901193309,0.17397618,59446.0,59445.0,1.34139502]
[1723901193510,0.17397618,59446.0,59445.0,1.34239502]
[1723901193705,0.17397618,59446.0,59445.0,1.3423575]
[1723901194313,0.17397618,59446.0,59445.0,0.9423575]
[1723901195113,0.17397618,59446.0,59445.0,1.3423575]
[1723901195415,0.17397618,59446.0,59445.0,1.34235165]
[1723901197315,0.17397618,59446.0,59445.0,1.40542565]
[1723901198224,0.17397618,59446.0,59445.0,1.50551357]
[1723901198409,0.13629199,59456.0,59455.0,0.063064]
[1723901198725,0.13629199,59456.0,59455.0,1.1453921]
[1723901199216,0.13629199,59456.0,59455.0,1.017264]
[1723901199420,0.13629199,59456.0,59455.0,1.08382333]
[1723901199611,0.13629199,59456.0,59455.0,1.08482333]
[1723901199813,0.13629199,59456.0,59455.0,1.08582333]
[1723901200523,0.13629199,59456.0,59455.0,1.09431278]
[1723901200926,0.13629199,59456.0,59455.0,1.93231345]
[1723901201120,0.13629199,59456.0,59455.0,1.99887278]
[1723901202320,0.13629199,59456.0,59455.0,1.93231345]
[1723901202521,0.13629199,59456.0,59455.0,1.99886427]
[1723901205518,0.13629199,59456.0,59455.0,1.93231345]
[1723901205717,0.13629199,59456.0,59455.0,1.99887558]
[1723901206318,0.13629199,59456.0,59455.0,2.06042451]
[1723901206522,0.13629199,59456.0,59455.0,2.2163566]
[1723901206814,0.13629199,59456.0,59455.0,1.3117966]
[1723901207018,0.13629199,59456.0,59455.0,1.15586451]
[1723901207219,0.13629199,59456.0,59455.0,1.14737506]
[1723901207629,0.13629199,59456.0,59455.0,1.07071012]
[1723901207824,0.13629199,59456.0,59455.0,1.07070998]
[1723901208525,0.14629199,59456.0,59455.0,1.07070998]
[1723901210129,0.13629199,59456.0,59455.0,1.07070998]
[1723901210529,0.14629199,59456.0,59455.0,1.07070998]
[1723901211020,0.41452594,59456.0,59455.0,1.00764598]
[1723901211223,0.47758894,59456.0,59455.0,0.85171195]
[1723901211628,0.47758894,59456.0,59455.0,0.002]
[1723901211629,1.01758894,59456.0,59455.0,0.002]
[1723901212335,1.01758894,59456.0,59455.0,0.06865089]
[1723901212533,1.01758894,59456.0,59439.0,0.06308]
[1723901212534,0.063076,59444.0,59439.0,0.06308]
[1723901212734,0.09,59444.0,59443.0,0.1000287]
[1723901212929,0.11170716,59444.0,59443.0,0.22817878]
[1723901213129,0.11170716,59444.0,59443.0,0.22817706]
[1723901214239,0.11170716,59444.0,59443.0,0.21150461]
[1723901214530,0.11170716,59444.0,59443.0,0.12815008]
[1723901214931,0.11170716,59444.0,59443.0,0.21150837]
[1723901215333,0.11270716,59444.0,59443.0,0.12815008]
[1723901216141,0.11370716,59444.0,59443.0,0.12815008]
[1723901216637,0.02370716,59444.0,59443.0,0.12815008]
[1723901216839,0.02370716,59444.0,59443.0,0.19122608]
[1723901217030,0.02370716,59444.0,59443.0,0.27459059]
[1723901217638,0.02370716,59444.0,59443.0,0.19122252]
[1723901221137,0.02370716,59444.0,59443.0,0.19121329]
[1723901221443,0.01691203,59446.0,59444.0,0.063075]
[1723901221743,0.36691203,59446.0,59445.0,0.19121129]
[1723901222830,0.36791203,59446.0,59445.0,0.19121129]
[1723901223433,0.36791203,59446.0,59445.0,0.22822994]
[1723901223637,0.36791203,59446.0,59445.0,0.22922994]
[1723901223837,0.36791203,59446.0,59445.0,0.19221129]
[1723901224750,0.36791203,59446.0,59445.0,0.22923008]
[1723901224937,0.351,59446.0,59445.0,0.38518791]
[1723901225543,0.001,59446.0,59445.0,0.38518791]
[1723901225940,0.00843309,59454.0,59445.0,0.46887769]
[1723901226142,0.04,59454.0,59453.0,0.3608]
[1723901226341,0.04,59454.0,59453.0,0.70796112]
[1723901226542,0.0518,59455.0,59454.0,0.063065]
[1723901226843,0.0518,59455.0,59454.0,0.34716012]
[1723901227642,0.0518,59455.0,59454.0,0.22821604]
[1723901228045,0.0518,59455.0,59454.0,0.22921604]
[1723901228633,0.0518,59455.0,59454.0,0.19220229]
[1723901228840,0.0518,59455.0,59454.0,0.38515588]
[1723901229042,0.0518,59455.0,59454.0,0.38515586]
[1723901229248,0.0518,59455.0,59454.0,0.23021575]
[1723901229546,0.13629199,59456.0,59455.0,0.063064]
[1723901229847,0.13629199,59456.0,59455.0,0.18339602]
[1723901230438,0.13629199,59456.0,59455.0,0.31151176]
[1723901230844,0.13629199,59456.0,59455.0,0.18339602]
[1723901231635,0.13629199,59456.0,59455.0,0.31351292]
[1723901231839,0.13629199,59456.0,59455.0,0.065064]
[1723901232549,0.14629199,59456.0,59455.0,0.065064]
[1723901232741,0.13629199,59456.0,59455.0,0.065064]
[1723901233551,0.13629199,59456.0,59455.0,0.14838256]
[1723901235347,0.13629199,59456.0,59455.0,0.18539669]
[1723901235650,0.13629199,59456.0,59455.0,0.10207813]
[1723901236044,0.13629199,59456.0,59455.0,0.065064]
[1723901236244,0.33629199,59456.0,59455.0,0.065064]
[1723901236550,0.33629199,59456.0,59455.0,0.19318303]
[1723901239741,0.33629199,59456.0,59455.0,0.33017664]
[1723901241053,0.33629199,59456.0,59455.0,0.29316323]
[1723901241554,0.39935499,59456.0,59455.0,0.23009923]
[1723901242252,0.39935499,59456.0,59455.0,0.1019802]
[1723901243059,0.39935499,59456.0,59455.0,0.13899355]
[1723901243359,0.39935499,59456.0,59455.0,0.03901335]
[1723901244261,0.39935499,59456.0,59455.0,0.39981335]
[1723901244767,0.39935499,59456.0,59455.0,0.03901335]
[1723901245057,0.39935499,59456.0,59455.0,0.39981335]
[1723901245962,0.39935499,59456.0,59455.0,0.49281335]
[1723901249760,0.63241799,59456.0,59455.0,0.03901335]
[1723901249964,0.63241799,59456.0,59455.0,0.002]
[1723901250761,1.53697799,59456.0,59455.0,0.002]
[1723901250966,0.12613,59454.0,59453.0,0.10013135]
[1723901251257,0.06307,59449.0,59448.0,0.3608]
[1723901251462,0.69607,59449.0,59448.0,0.3608]
[1723901251654,1.60071,59449.0,59448.0,0.3608]
[1723901251963,0.063076,59443.0,59442.0,0.11681991]
[1723901252146,0.496076,59443.0,59442.0,0.11681991]
[1723901252352,1.540756,59443.0,59442.0,0.11681991]
[1723901252865,0.063081,59439.0,59437.0,0.49430847]
[1723901253052,0.336081,59439.0,59437.0,0.49586847]
[1723901253365,0.840801,59439.0,59437.0,0.49586847]
[1723901253569,0.336081,59439.0,59437.0,0.49586847]
[1723901253865,0.243081,59439.0,59437.0,0.49586847]
[1723901255364,0.249081,59439.0,59438.0,0.12941265]
[1723901256055,0.254081,59439.0,59438.0,0.12941265]
[1723901256467,0.254081,59439.0,59438.0,0.00125233]
[1723901256960,0.614881,59439.0,59438.0,0.00125233]
[1723901257362,0.614881,59439.0,59438.0,0.06789151]
[1723901257569,0.254081,59439.0,59438.0,0.00125233]
[1723901257866,0.76735755,59439.0,59438.0,0.00125233]
[1723901258464,0.76735755,59439.0,59438.0,0.06788203]
[1723901258661,1.30735755,59439.0,59438.0,0.06788203]
[1723901258866,1.66815755,59439.0,59438.0,0.06788203]
[1723901259166,1.66815755,59439.0,59438.0,0.00125233]
[1723901261166,0.063084,59436.0,59435.0,0.0666297]
[1723901261359,0.063085,59435.0,59434.0,0.0666297]
[1723901261667,0.52,59435.0,59433.0,0.0666297]
[1723901261969,0.063087,59433.0,59432.0,0.0666297]
[1723901262161,0.563087,59433.0,59432.0,0.0666297]
[1723901262367,0.563087,59433.0,59429.0,0.3608]
[1723901262767,0.563087,59433.0,59429.0,0.44416291]
[1723901263168,0.563087,59433.0,59429.0,0.3608]
[1723901263364,0.563087,59433.0,59429.0,0.44416291]
[1723901263565,0.563087,59433.0,59429.0,0.3608]
[1723901263870,0.063089,59432.0,59429.0,0.3658]
[1723901264070,0.643089,59432.0,59429.0,0.3658]
[1723901265670,0.643089,59432.0,59429.0,0.3698]
[1723901267372,0.58,59432.0,59429.0,0.3698]
[1723901267872,0.58,59432.0,59429.0,0.45316291]
[1723901268058,0.58,59432.0,59430.0,0.08336291]
[1723901268465,0.58,59432.0,59431.0,0.2115367]
[1723901268872,0.58,59432.0,59431.0,0.08336291]
[1723901269068,0.643088,59432.0,59431.0,0.21153703]
[1723901269465,0.643088,59432.0,59431.0,0.12817366]
[1723901269665,0.643088,59432.0,59431.0,0.21155158]
[1723901270171,0.643088,59432.0,59431.0,0.2145518]
[1723901270372,0.643088,59432.0,59431.0,0.13117578]
[1723901270876,1.147888,59432.0,59431.0,0.003]
[1723901271281,1.147888,59432.0,59431.0,0.08644543]
[1723901271467,1.147888,59432.0,59431.0,0.13118294]
[1723901272075,1.147888,59432.0,59431.0,0.13318294]
[1723901272475,1.147888,59432.0,59431.0,0.21672785]
[1723901272674,1.147888,59432.0,59431.0,0.13318294]
[1723901273372,1.147888,59432.0,59431.0,0.21672263]
[1723901273573,1.147888,59432.0,59431.0,0.13318294]
[1723901273876,1.147888,59432.0,59431.0,0.21672222]
[1723901274077,1.147888,59432.0,59431.0,0.13318294]
[1723901274277,0.643088,59432.0,59431.0,0.005]
[1723901274573,0.643088,59432.0,59431.0,0.13318195]
[1723901275978,0.58,59432.0,59431.0,0.19627095]
[1723901276481,0.58,59432.0,59431.0,0.29641257]
[1723901277285,0.58,59432.0,59431.0,0.19627095]
[1723901278786,0.58,59432.0,59431.0,0.2965106]
[1723901279084,0.58,59432.0,59431.0,0.19627095]
[1723901280985,0.58,59432.0,59431.0,0.35227437]
[1723901286385,0.5295086,59432.0,59431.0,0.35227437]
[1723901288385,0.5295086,59432.0,59431.0,0.19625587]
[1723901288579,0.17,59432.0,59431.0,0.38927979]
[1723901289891,0.2631,59432.0,59431.0,0.38927979]
[1723901290086,0.2731,59432.0,59431.0,0.38927979]
[1723901291390,0.2731,59432.0,59431.0,0.23328368]
[1723901292883,0.2731,59432.0,59431.0,0.23328028]
[1723901293589,0.00025233,59438.0,59437.0,0.063083]
[1723901293796,0.17025233,59438.0,59437.0,0.80114302]
[1723901294796,0.17525233,59438.0,59437.0,0.80114302]
[1723901295198,0.13317845,59438.0,59437.0,0.70804302]
[1723901295392,0.13317845,59438.0,59437.0,0.74506803]
[1723901295897,0.13717845,59438.0,59437.0,0.74506803]
[1723901296598,0.22527845,59438.0,59437.0,0.38426803]
[1723901296798,0.22127845,59438.0,59437.0,0.38426803]
[1723901296984,0.22127845,59438.0,59437.0,0.38526803]
[1723901297798,0.22127845,59438.0,59437.0,0.38525517]
[1723901298206,0.12817845,59438.0,59437.0,0.38525517]
[1723901298398,0.424754,59446.0,59437.0,0.45229713]
[1723901298598,0.0931,59443.0,59438.0,0.35819713]
[1723901298802,0.0931,59443.0,59439.0,0.35819713]
[1723901299004,0.0931,59443.0,59442.0,0.3608]
[1723901299187,0.0931,59443.0,59442.0,0.71899713]
[1723901299585,0.0931,59443.0,59442.0,0.68197217]
[1723901299790,0.0931,59443.0,59442.0,0.71899318]
[1723901299991,0.0931,59443.0,59442.0,0.68197217]
[1723901300196,0.1081,59443.0,59442.0,0.74505017]
[1723901300400,0.1111,59443.0,59442.0,0.78207094]
[1723901300594,0.1061,59443.0,59442.0,0.74505017]
[1723901300800,0.1071,59443.0,59442.0,0.74505017]
[1723901301789,0.1071,59443.0,59442.0,0.62608052]
[1723901302391,0.1071,59443.0,59442.0,0.62606244]
[1723901303400,0.1071,59443.0,59442.0,0.58904251]
[1723901305896,0.1071,59443.0,59442.0,0.5520175]
[1723901306102,0.1071,59443.0,59442.0,0.58903717]
[1723901307199,0.320176,59443.0,59442.0,0.48894694]
[1723901310209,0.320176,59443.0,59442.0,0.3608]
[1723901310505,0.320176,59443.0,59442.0,0.12814952]
[1723901310906,0.320176,59443.0,59442.0,0.16517231]
[1723901311504,0.320176,59443.0,59442.0,0.26531507]
[1723901311692,0.320176,59443.0,59442.0,0.16517231]
[1723901311895,0.320176,59443.0,59442.0,0.26531507]
[1723901312393,0.320176,59443.0,59442.0,0.16517231]
[1723901312598,0.164,59443.0,59442.0,0.16517231]
[1723901312797,0.1071,59443.0,59442.0,0.3211381]
[1723901313104,0.1071,59443.0,59442.0,0.16517231]
[1723901313401,0.063075,59445.0,59443.0,0.155976]
[1723901313608,0.423075,59445.0,59444.0,0.22824731]
[1723901314206,0.423075,59445.0,59444.0,0.34719585]
[1723901315104,0.516175,59445.0,59444.0,0.34719585]
[1723901315505,0.427075,59445.0,59444.0,0.34719585]
[1723901315709,0.523175,59445.0,59444.0,0.34719585]
[1723901316303,0.520175,59445.0,59444.0,0.34719585]
[1723901316504,0.525175,59445.0,59444.0,0.34719585]
[1723901316704,0.525175,59445.0,59444.0,0.34718779]
[1723901318807,0.525175,59445.0,59444.0,0.28411279]
[1723901319203,0.525175,59445.0,59444.0,0.28411741]
[1723901319404,0.525175,59445.0,59444.0,0.12814208]
[1723901321311,0.063075,59444.0,59443.0,0.19311404]
[1723901321511,0.593075,59444.0,59443.0,0.22105109]
[1723901322215,0.593075,59444.0,59443.0,0.25807334]
[1723901322403,0.596075,59444.0,59443.0,0.25807334]
[1723901322612,0.599075,59444.0,59443.0,0.25807334]
[1723901323010,0.599075,59444.0,59443.0,0.41405035]
[1723901323312,0.599075,59444.0,59443.0,0.3770281]
[1723901323617,0.536,59444.0,59443.0,0.3770281]
[1723901324316,0.599075,59444.0,59443.0,0.3770281]
[1723901330220,0.599075,59444.0,59443.0,0.41404993]
[1723901335220,0.5485899,59444.0,59443.0,0.3770281]
[1723901335419,0.5485899,59444.0,59443.0,0.41405053]
[1723901336622,0.5485899,59444.0,59443.0,0.41405054]
[1723901340226,0.50651937,59444.0,59443.0,0.41405054]
[1723901340428,0.50651937,59444.0,59443.0,0.41404577]
[1723901342222,0.50651937,59444.0,59443.0,0.45106785]
[1723901342629,0.50651937,59444.0,59443.0,0.41404577]
[1723901343224,0.50651937,59444.0,59443.0,0.45106782]
[1723901346727,0.50651937,59444.0,59443.0,0.22104684]
[1723901346928,0.50651937,59444.0,59443.0,0.41405218]
[1723901347330,0.56959437,59444.0,59443.0,0.41405218]
[1723901347532,0.50651937,59444.0,59443.0,0.22104684]
[1723901347730,0.50651937,59444.0,59443.0,0.22106002]
[1723901348031,0.50651937,59444.0,59443.0,0.30471057]
[1723901348334,0.56959437,59444.0,59443.0,0.0929]
[1723901348636,0.50651937,59444.0,59443.0,0.0929]
[1723901348837,0.50651937,59444.0,59443.0,0.22107432]
[1723901349030,0.50651937,59444.0,59443.0,0.30466254]
[1723901349731,0.50651937,59444.0,59443.0,0.17648822]
[1723901349939,0.50651937,59444.0,59443.0,0.30465573]
[1723901350126,0.50651937,59444.0,59443.0,0.17648822]
[1723901350536,1.07427437,59444.0,59443.0,0.17648822]
[1723901350749,1.01119937,59444.0,59443.0,0.0929]
[1723901351237,1.07427437,59444.0,59443.0,0.0929]
[1723901351541,1.01119937,59444.0,59443.0,0.0929]
[1723901351836,1.41119937,59444.0,59443.0,0.0929]
[1723901352031,1.47427437,59444.0,59443.0,0.0929]
[1723901352438,1.01119937,59444.0,59443.0,0.0929]
[1723901353530,1.07427437,59444.0,59443.0,0.0929]
[1723901353729,1.01119937,59444.0,59443.0,0.0929]
[1723901354030,1.07427437,59444.0,59443.0,0.0929]
[1723901354236,1.01119937,59444.0,59443.0,0.0929]
[1723901354535,1.07427437,59444.0,59443.0,0.0929]
[1723901355129,0.44344437,59444.0,59440.0,0.08349955]
[1723901355430,0.4539,59441.0,59440.0,0.08349971]
[1723901355629,0.06308,59440.0,59439.0,0.08349971]
[1723901355837,0.69408,59440.0,59439.0,0.21166987]
[1723901356039,0.063081,59439.0,59438.0,0.08349971]
[1723901356233,0.676181,59439.0,59438.0,0.21167212]
[1723901356532,0.676181,59439.0,59438.0,0.21166418]
[1723901357139,1.036981,59439.0,59438.0,0.21166418]
[1723901357833,0.063086,59434.0,59433.0,0.10036208]
[1723901358033,0.716186,59434.0,59433.0,0.26556472]
[1723901358333,0.716186,59434.0,59433.0,0.12817305]
[1723901358723,0.716186,59434.0,59433.0,0.22853513]
[1723901358929,0.716186,59434.0,59433.0,0.2655641]
[1723901358930,0.6531,59434.0,59433.0,0.2655641]
[1723901359130,0.6531,59434.0,59433.0,0.17420202]
[1723901359131,0.6541,59434.0,59433.0,0.17420202]
[1723901359529,0.6551,59434.0,59433.0,0.18220202]
[1723901359930,0.66376241,59434.0,59433.0,0.18220202]
[1723901360137,0.72684841,59434.0,59433.0,0.18220202]
[1723901362843,0.72684841,59434.0,59433.0,0.18220071]
[1723901364035,0.72684841,59434.0,59433.0,0.14517174]
[1723901364241,0.72684841,59434.0,59433.0,0.18220112]
[1723901364940,0.72684841,59434.0,59433.0,0.18220033]
[1723901365544,0.63374841,59434.0,59433.0,0.18220033]
[1723901365757,0.72684841,59434.0,59433.0,0.18220033]
[1723901366137,0.72684841,59434.0,59433.0,0.21922754]
[1723901368542,0.72684841,59434.0,59433.0,0.18219914]
[1723901368730,0.72684841,59434.0,59433.0,0.18219282]
[1723901368931,0.72684841,59434.0,59433.0,0.54299282]
[1723901369335,0.72684841,59434.0,59433.0,0.58002025]
[1723901369536,0.72684841,59434.0,59433.0,0.54299282]
[1723901369737,0.72684841,59434.0,59433.0,0.18219282]
[1723901369937,0.72684841,59434.0,59433.0,0.54299282]
[1723901370442,0.66376241,59434.0,59433.0,0.70644188]
[1723901373146,0.66376241,59434.0,59433.0,0.6060798]
[1723901373348,0.66376241,59434.0,59433.0,0.76207779]
[1723901376952,0.66376241,59434.0,59433.0,0.72505039]
[1723901377148,0.66376241,59434.0,59433.0,0.76207762]
[1723901377353,0.66376241,59434.0,59433.0,0.76207723]
[1723901379554,0.72684841,59434.0,59433.0,0.69899023]
[1723901381342,0.72684841,59434.0,59433.0,0.661963]
[1723901381555,0.72684841,59434.0,59433.0,0.69899073]
[1723901382450,0.72684841,59434.0,59433.0,0.33819073]
[1723901382753,0.72684841,59434.0,59433.0,0.69899073]
[1723901385160,0.68477087,59434.0,59433.0,0.69899073]
[1723901385553,0.68477087,59434.0,59433.0,0.69899129]
[1723901388953,0.62586223,59434.0,59433.0,0.301163]
[1723901389152,0.62586223,59434.0,59433.0,0.69899129]
[1723901390865,0.62586223,59434.0,59433.0,0.33819129]
[1723901391064,0.62586223,59434.0,59433.0,0.69899129]
[1723901391570,0.62586223,59434.0,59433.0,0.73601958]
[1723901391771,0.62586223,59434.0,59433.0,0.73602768]
[1723901393463,0.62586223,59434.0,59433.0,0.64398291]
[1723901393662,0.62586223,59434.0,59433.0,0.28318291]
[1723901394168,0.62586223,59434.0,59433.0,0.43918487]
[1723901394475,0.62586223,59434.0,59433.0,0.64398255]
[1723901394974,0.62586223,59434.0,59433.0,0.28318255]
[1723901395176,0.62586223,59434.0,59433.0,0.43918508]
[1723901395676,0.62586223,59434.0,59433.0,0.79998508]
[1723901396174,0.62586223,59434.0,59433.0,0.64398255]
[1723901396772,0.62586223,59434.0,59433.0,0.58002522]
[1723901398782,0.62586223,59434.0,59433.0,0.21922522]
[1723901399876,0.62586223,59434.0,59433.0,0.2192257]
[1723901400367,0.62586223,59434.0,59433.0,0.37522997]
[1723901400679,0.62586223,59434.0,59433.0,0.37523125]
[1723901401177,0.62586223,59434.0,59433.0,0.33820254]
[1723901401380,0.62586223,59434.0,59433.0,0.37523115]
[1723901402770,0.53276223,59434.0,59433.0,0.37523115]
[1723901403084,0.62586223,59434.0,59433.0,0.37523115]
[1723901403294,0.3261,59453.0,59434.0,0.567846]
[1723901403507,0.423859,59460.0,59449.0,0.063069]
[1723901403508,0.26,59451.0,59449.0,0.063069]
[1723901403796,0.15,59451.0,59450.0,0.48795853]
[1723901403989,0.15,59451.0,59450.0,0.55189657]
[1723901404187,0.15,59451.0,59450.0,0.48795853]
[1723901404697,0.15,59451.0,59450.0,0.4879075]
[1723901404892,0.156,59451.0,59450.0,0.4879075]
[1723901405097,0.2491,59451.0,59450.0,0.41385141]
[1723901405396,0.2491,59451.0,59450.0,0.29491411]
[1723901406196,0.2581,59451.0,59450.0,0.29591411]
[1723901406390,0.2581,59451.0,59450.0,0.39596091]
[1723901406596,0.2581,59451.0,59450.0,0.39696091]
[1723901406597,0.2571,59451.0,59450.0,0.39696091]
[1723901406796,0.1071,59451.0,59450.0,0.39696091]
[1723901407093,0.063059,59460.0,59455.0,0.063064]
[1723901407302,0.0931,59458.0,59455.0,0.72603704]
[1723901407491,0.0931,59459.0,59455.0,1.28650953]
[1723901408294,0.0931,59459.0,59455.0,1.28650681]
[1723901408500,0.0931,59459.0,59455.0,1.24949893]
[1723901408798,0.0931,59459.0,59455.0,1.64949893]
[1723901409098,0.56935734,59466.0,59455.0,1.64949893]
[1723901409099,0.24325734,59466.0,59455.0,1.49356911]
[1723901409300,0.13729199,59456.0,59455.0,1.65048486]
[1723901409890,0.13729199,59456.0,59455.0,1.6874918]
[1723901410085,0.13829199,59456.0,59455.0,1.6884918]
[1723901410286,0.13829199,59456.0,59455.0,1.65147507]
[1723901410499,0.13829199,59456.0,59455.0,1.65147359]
[1723901410699,0.13829199,59456.0,59455.0,1.68847969]
[1723901410894,0.13829199,59456.0,59455.0,1.53256458]
[1723901411200,0.13829199,59456.0,59455.0,1.49555848]
[1723901411405,0.13829199,59456.0,59455.0,1.50459886]
[1723901411903,0.13829199,59456.0,59455.0,1.10459886]
[1723901412304,0.23139199,59456.0,59455.0,1.10459886]
[1723901412691,0.23139199,59456.0,59455.0,1.05855238]
[1723901413600,0.23139199,59456.0,59455.0,0.55399238]
[1723901414304,0.23139199,59456.0,59455.0,1.05855238]
[1723901414503,0.23139199,59456.0,59455.0,1.14151845]
[1723901415002,0.23139199,59456.0,59455.0,0.63695845]
[1723901416093,0.23139199,59456.0,59455.0,0.50883007]
[1723901416491,0.23139199,59456.0,59455.0,0.3628]
[1723901416492,0.29445499,59456.0,59455.0,0.3628]
[1723901416694,0.55445499,59456.0,59455.0,0.41259256]
[1723901416998,0.55445499,59456.0,59455.0,0.3628]
[1723901420414,0.55445499,59456.0,59455.0,0.002]
[1723901425408,0.55445499,59456.0,59455.0,0.05179247]
[1723901426398,0.55445499,59456.0,59455.0,0.002]
[1723901427198,0.55445499,59456.0,59455.0,0.06838344]
[1723901428102,0.55445499,59456.0,59455.0,0.002]
[1723901429212,0.55445499,59456.0,59455.0,0.08496607]
[1723901429412,0.55445499,59456.0,59455.0,0.2130842]
[1723901430705,0.55445499,59456.0,59455.0,0.21308418]
[1723901431511,0.55445499,59456.0,59455.0,0.13011811]
[1723901432212,0.55445499,59456.0,59455.0,0.13011834]
[1723901435401,0.126136,59451.0,59450.0,0.09957997]
[1723901435602,0.063069,59450.0,59449.0,0.08342054]
[1723901435806,0.063071,59448.0,59447.0,0.08342054]
[1723901436110,0.6331,59448.0,59446.0,0.08342054]
[1723901436312,0.0931,59447.0,59446.0,0.08342054]
[1723901436616,0.5731,59447.0,59446.0,0.08341287]
[1723901437407,0.063073,59446.0,59445.0,0.08341287]
[1723901437713,0.063074,59445.0,59444.0,0.0836652]
[1723901437918,0.063074,59445.0,59444.0,0.21179983]
[1723901437919,0.563074,59445.0,59444.0,0.21179983]
[1723901438309,0.563074,59445.0,59444.0,0.08365062]
[1723901438614,0.563074,59445.0,59444.0,0.00025233]
[1723901438811,0.563074,59445.0,59444.0,0.08365062]
[1723901439212,0.563074,59445.0,59444.0,0.00025233]
[1723901439606,0.566074,59445.0,59444.0,0.00025233]
[1723901440006,0.57323331,59445.0,59444.0,0.00025233]
[1723901440412,0.57523331,59445.0,59444.0,0.00025233]
[1723901441219,0.57523331,59445.0,59444.0,0.08365062]
[1723901441614,0.57523331,59445.0,59444.0,0.21179824]
[1723901441811,0.57523331,59445.0,59444.0,0.08365062]
[1723901442414,0.57523331,59445.0,59444.0,0.21179877]
[1723901442615,0.57523331,59445.0,59444.0,0.21180086]
[1723901442811,0.57523331,59445.0,59444.0,0.08365062]
[1723901443923,0.57523331,59445.0,59444.0,0.21180121]
[1723901444316,0.57523331,59445.0,59444.0,0.08365062]
[1723901444526,0.57523331,59445.0,59444.0,0.21180154]
[1723901444721,0.57523331,59445.0,59444.0,0.12840325]
[1723901445013,0.57523331,59445.0,59444.0,0.21182662]
[1723901445418,0.57523331,59445.0,59444.0,0.12840325]
[1723901450315,0.63830731,59445.0,59444.0,0.2118453]
[1723901450628,0.63830731,59445.0,59444.0,0.00025233]
[1723901451732,0.063078,59442.0,59440.0,0.08344205]
[1723901451923,0.063078,59442.0,59437.0,0.0834502]
[1723901451924,0.0931,59441.0,59437.0,0.0834502]
[1723901452119,0.0931,59441.0,59435.0,0.0834502]
[1723901452120,0.126168,59436.0,59435.0,0.0834502]
[1723901452424,0.063085,59435.0,59430.0,0.0834502]
[1723901452730,0.0931,59431.0,59430.0,0.0834502]
[1723901452927,0.063091,59429.0,59428.0,0.0834502]
[1723901453121,0.063091,59429.0,59427.0,0.00025233]
[1723901453122,0.063092,59428.0,59427.0,0.08370253]
[1723901453329,0.636192,59428.0,59427.0,0.00025233]
[1723901454533,0.636192,59428.0,59427.0,0.01425233]